Cogmind - Beta 17 @@@ ROGUE MODE // 2026.08.17 @ 12:49:51 Player: THN-L0C Result: Destroyed by G8-IL1(R) with Subdweller Machine Gun Performance ------------- Evolutions (0) 0 Regions Visited (2) 400 Robots Destroyed (13) 65 Value Destroyed (352) 352 Prototype IDs (2) 40 Alien Tech Used (0) 0 Bonus (0) 0 TOTAL SCORE: 857 Bonus ------- None Cogmind --------- Core Integrity 0/250 Matter 300/300 Energy 200/200 System Corruption 0% Temperature Cool (0) Movement Treading (240) Ox1 Location -10/Subcaves Parts ------- > --- POWER (1) -------- Subdweller Power Source > --- PROPULSION (2) --- Improved Treads Improved Treads > --- UTILITY (2) ------ Disposable Heat Sink High-capacity Storage Unit > --- WEAPON (2) ------- Improved Medium Laser Improved Medium Laser > --- INVENTORY (20) --- Subdweller Power Source Subdweller Power Source Improved Treads Improved Treads Subdweller Monowheel Heat Sink Improved Terrain Scanner Seismic Detector Medium Armor Plating Medium Laser Improved Medium Laser Battle Rifle Battle Rifle Battle Cannon Datajack Mining Laser Hammer Peak State ------------ > --- POWER ------------ Subdweller Power Source > --- PROPULSION ------- Improved Treads Improved Treads > --- UTILITY ---------- Disposable Heat Sink High-capacity Storage Unit > --- WEAPON ----------- Improved Medium Laser Improved Medium Laser > --- INVENTORY -------- Subdweller Power Source Subdweller Power Source Improved Treads Improved Treads Subdweller Monowheel Heat Sink Improved Terrain Scanner Seismic Detector Medium Armor Plating Medium Laser Improved Medium Laser Battle Rifle Battle Rifle Battle Cannon Datajack Mining Laser Hammer [Rating: 18] Favorites ----------- Power Light Ion Engine Engine Light Ion Engine Propulsion Improved Treads Treads Improved Treads Leg Aluminum Leg Flight Unit Improved Flight Unit Utility High-capacity Storage Unit Device Seismic Detector Storage High-capacity Storage Unit Protection Medium Armor Plating Weapon Improved Medium Laser Energy Gun Improved Medium Laser Special Weapon Mining Laser Build | -11 -10 -10 ------- Run | Yrd Mat Sub Slots Evolved . | . . . Power . | . . . Propulsion . | . . . Utility . | . . . Weapon . | . . . Parts Attached 19 | 7 8 4 Power 4 | 2 . 2 Engine 4 | 2 . 2 Core . | . . . Reactor . | . . . Propulsion 5 | 2 3 . Treads 2 | . 2 . Leg 2 | 2 . . Wheel . | . . . Hover . | . . . Flight 1 | . 1 . Utility 5 | 1 2 2 Device 2 | . 1 1 Storage 2 | 1 1 . Processor . | . . . Hackware . | . . . Protection 1 | . . 1 Artifact . | . . . Weapon 5 | 2 3 . Energy Gun 4 | 2 2 . Energy Cannon . | . . . Ballistic Gun . | . . . Ballistic Cannon . | . . . Launcher . | . . . Special Weapon 1 | . 1 . Impact Weapon . | . . . Slashing Weapon . | . . . Piercing Weapon . | . . . Special Melee Weapon . | . . . Unidentified Prototypes 2 | . 2 . Parts Lost 2 | . . 2 Power 2 | . . 2 Propulsion . | . . . Utility . | . . . Weapon . | . . . Highest Loss Streak 1 | . . 1 To Critical Strikes . | . . . Average Backups 11 | 2 8 14 Power . | . . . Propulsion 2 | . 1 2 Utility 3 | . 2 3 Weapon 4 | . 2 5 Tool/Special . | . . . Unused Backups 14 | . 1 13 Power 2 | . . 2 Propulsion 4 | . 1 3 Utility 2 | . . 2 Weapon 5 | . . 5 Tool/Special 1 | . . 1 Average Slot Usage (%) 99 | . 99 99 Engine 13 | . 14 13 Treads 25 | . 22 28 Leg 2 | . 5 . Device 9 | . 14 5 Storage 14 | . 14 14 Protection 4 | . . 8 Energy Gun 25 | . 23 27 Special Weapon 2 | . 4 . Peak Build Rating 18 | 6 14 18 Average Rating 14 | 5 12 16 On Entrance 6 | . 6 12 Avg Prop Armor Cover (%) . | . . . Naked Turns . | . . . Heaviest Build 56 | 14 50 56 Greatest Support 46 | 20 46 46 Greatest Overweight (x) 4 | 4 1 1 Average Overweight (x) . | . . 1 Largest Inventory Capacity 20 | 8 20 20 Average Capacity 18 | 7 17 20 Most Carried 17 | 5 10 17 Average Carried 11 | 2 8 14 Final Capacity 20 | 8 20 20 Final Carried 17 | 5 10 17 Class Distribution -------------------- 100% | Mutant Dominant Class ---------------- Mutant | -10/Materials Mutant | -10/Subcaves Resources | -11 -10 -10 ----------- Run | Yrd Mat Sub Matter Collected 442 | 253 144 45 Remotely . | . . . Salvage Created 426 | 31 102 293 Parts 37 | 7 13 17 Haulers Intercepted . | . . . Recyclers Shooed 1 | 1 . . Parts Field Recycled . | . . . Retrieved Matter . | . . . Parts Self-Destructed . | . . . Prevented . | . . . Parts Restored . | . . . Kills | -11 -10 -10 ------- Run | Yrd Mat Sub Combat Hostiles Destroyed 11 | . 5 6 Guns 9 | . 4 5 Classes Destroyed 5 | 1 2 2 Tunneler 2 | 2 . . Swarmer 3 | . 3 . Grunt 2 | . 2 . Artisan 1 | . . 1 Subdweller 6 | . . 6 Best Kill Streak 3 | 1 3 2 Combat Bots Only 3 | . 3 2 Max Kills in Single Turn 1 | 1 1 1 Gunslinging . | . . . Exploded . | . . . Melee . | . . . Uniques/NPCs Destroyed . | . . . Combat | -11 -10 -10 -------- Run | Yrd Mat Sub Hostile Shots Fired 79 | . 45 34 Missed 24 | . 15 9 Hits 55 | . 30 25 Projectile 55 | . 30 25 Critical Strikes 1 | . 1 . Damage Taken 886 | . 336 550 Core 261 | . 72 189 Absorbed by Shields . | . . . Core Remaining (%) 100 | 100 . . Volleys Fired 58 | 9 23 26 Largest 2 | 2 2 2 Hottest 112 | 100 112 112 Shots Fired 103 | 18 33 52 Gun 102 | 18 32 52 Cannon . | . . . Launcher . | . . . Special 1 | . 1 . Kinetic . | . . . Thermal 103 | 18 33 52 Explosive . | . . . Electromagnetic . | . . . Robot Hit Streak 25 | 12 5 25 Robot Miss Streak 3 | 1 3 1 Penetration Max . | . . . Secondary Targets 1 | . . 1 Max Gunslinging Chain 1 | . . 1 Shots Hit Robots 80 | 14 21 45 Core Hits 20 | 3 5 12 Critical Kills . | . . . Critical Parts Destroyed . | . . . Critical Strikes 7 | 1 3 3 Burn 7 | 1 3 3 Melee Attacks . | . . . Impact . | . . . Slashing . | . . . Piercing . | . . . Sneak Attacks . | . . . Combat Hostiles . | . . . Follow-up Attacks . | . . . Damage Inflicted 1116 | 213 294 609 Guns 1101 | 213 279 609 Cannons . | . . . Explosions . | . . . Melee . | . . . Ramming 15 | . 15 . Kinetic . | . . . Thermal 1101 | 213 279 609 Explosive . | . . . Electromagnetic . | . . . Impact . | . . . Slashing . | . . . Piercing . | . . . Highest Corruption . | . . . Average Corruption . | . . . Corruption Purged . | . . . Corruption Blocked . | . . . Overload Shots . | . . . Overflow Damage . | . . . Projectiles . | . . . Explosions . | . . . Melee . | . . . Knockbacks . | . . . Impact . | . . . Kinetic . | . . . Secondary . | . . . Self-Inflicted Damage . | . . . Shots . | . . . Rammed 1 | . 1 . Targets Rammed 8 | . 8 . Kicked 7 | . 7 . Crushed . | . . . Highest Temperature 337 | 195 337 18 Average Temperature 130 | 77 168 7 Received Heat Transfer 279 | . 186 93 Effects 5 | . 5 . Energy Bleed 1 | . 1 . Interference 3 | . 3 . Damage (minor) 1 | . 1 . Siege Activations . | . . . Martial Activations . | . . . Shielding Activations . | . . . Robots Disrupted . | . . . Combat Hostiles . | . . . Robots Corrupted . | . . . Combat Hostiles . | . . . Parts Fried . | . . . Impact Corruptions . | . . . Robots Melted 2 | . 1 1 Combat Hostiles 2 | . 1 1 Parts Melted 8 | 1 1 6 Heat Transferred 3256 | 703 999 1554 Parts Sabotaged . | . . . Parts Stolen . | . . . Parts Stripped . | . . . Power Chain Reactions . | . . . Alert | -11 -10 -10 ------- Run | Yrd Mat Sub Maximum Alert Level . | . . . Low Security (%) 100 | 100 100 . Level 1 . | . . . Level 2 . | . . . Level 3 . | . . . Level 4 . | . . . Level 5 . | . . . High Security . | . . . Max Security . | . . . Peak Influence 68 | 5 68 . Initial . | . . . Average 9 | . 10 . Influence Increases 215 | 10 205 . Destroy 0b10 Robot/C 100 | . 100 . Destroy 0b10 Robot/NC 10 | 10 . . Destroy Leader 20 | . 20 . Successful Hack 24 | . 24 . Destroy Structure 1 | . 1 . Lose Combat Pursuer 60 | . 60 . Influence Decreases 215 | 10 205 . Time Decay 215 | 10 205 . Squads Dispatched 2 | . 2 . Investigation 1 | . 1 . Extermination . | . . . Reinforcement 1 | . 1 . Assault . | . . . Garrison . | . . . Intercept . | . . . Searches Triggered . | . . . Construction Impeded . | . . . Haulers Reinforced . | . . . Active Scanning Responses . | . . . Cargo Convoy Interrupts . | . . . Stealth | -11 -10 -10 --------- Run | Yrd Mat Sub Distress Signals 3 | . 3 . Communications Jammed . | . . . Distress Signals . | . . . Times Spotted 21 | . 13 8 Peak Tracking Total 5 | . 5 2 Tactical Retreats 1 | . 1 . Traps | -11 -10 -10 ------- Run | Yrd Mat Sub Traps Triggered 2 | . 2 . Indirectly . | . . . Trap Hack Attempts . | . . . Triggered . | . . . Disarmed . | . . . Reprogrammed . | . . . Reused 1 | . . 1 Traps Extracted . | . . . Installed 1 | . . 1 Triggered . | . . . Machines | -11 -10 -10 ---------- Run | Yrd Mat Sub Machines Disabled . | . . . Max in Single Turn . | . . . Machines Repaired . | . . . Machines Dismantled . | . . . Machines Sabotaged . | . . . Overloaded Fab Kills . | . . . Hacking | -11 -10 -10 --------- Run | Yrd Mat Sub Machines Accessed 7 | . 6 1 Terminals 6 | . 6 . Fabricators . | . . . Repair Stations . | . . . Recycling Units . | . . . Scanalyzers . | . . . Garrison Access . | . . . Total Hacks 20 | . 16 4 Successful 12 | . 8 4 Failed 8 | . 8 . Catastrophic . | . . . Database Lockouts . | . . . Manual 15 | . 15 . Terminals 16 | . 16 . Fabricators . | . . . Repair Stations . | . . . Recycling Units . | . . . Scanalyzers . | . . . Garrison Access . | . . . Terminal Hacks 6 | . 2 4 Record 4 | . . 4 Terminal Index 1 | . 1 . Locate Traps 1 | . 1 . Fabricator Hacks . | . . . Repair Station Hacks . | . . . Recycling Unit Hacks . | . . . Scanalyzer . | . . . Garrison Access Hacks . | . . . Unauthorized Hacks 6 | . 6 . Terminals 6 | . 6 . Botnet 2 | . 2 . Operators 1 | . 1 . Skim 3 | . 3 . Fabricators . | . . . Repair Stations . | . . . Recycling Units . | . . . Scanalyzers . | . . . Garrison Access . | . . . Data Cores Recovered . | . . . Used . | . . . Hacking Detections 6 | . 6 . Full Trace Events . | . . . Feedback Events . | . . . Feedback Blocked . | . . . Robot Schematics Acquired . | . . . Robots Built . | . . . Authchips . | . . . Time . | . . . Total Robot Build Rating . | . . . Part Schematics Acquired . | . . . Parts Built . | . . . Authchips . | . . . Time . | . . . Total Part Build Rating . | . . . Part Studies Acquired . | . . . Parts Repaired . | . . . Time . | . . . Parts Recycled . | . . . Recycled Matter . | . . . Retrieved Matter . | . . . Retrieved Components . | . . . Parts Scanalyzed . | . . . Part Schematics Acquired . | . . . Parts Damaged . | . . . Bothacking | -11 -10 -10 ------------ Run | Yrd Mat Sub Used RIF Installer . | . . . Robots Hacked . | . . . Non-combat . | . . . Combat . | . . . Robot Hacks Applied . | . . . Relay Couplers Released . | . . . Fabnet Peak Effective % . | . . . Robots Rewired . | . . . Allies Hacked . | . . . Hacks Repelled . | . . . Allies | -11 -10 -10 -------- Run | Yrd Mat Sub Total Allies . | . . . Largest Group . | . . . Highest-Rated Group . | . . . Highest-Rated Ally . | . . . Total Orders . | . . . Ally Attacks . | . . . Total Damage . | . . . Kills . | . . . Allies Corrupted . | . . . Allies Melted . | . . . Intel | -11 -10 -10 ------- Run | Yrd Mat Sub Active Infowar (turns) 1364 | . 1273 91 Seismic 1364 | . 1273 91 Robot Analysis Total . | . . . Derelict Logs Recovered . | . . . Drone Launches . | . . . Drone Recoveries . | . . . Exploration | -11 -10 -10 ------------- Run | Yrd Mat Sub Turns Passed 3168 | 115 1273 1780 Spaces Moved 1168 | 55 429 684 Core 17 | 17 . . Treads 981 | . 297 684 Legs 170 | 38 132 . Wheels . | . . . Hover . | . . . Flight . | . . . Fastest Speed 50 | 50 120 240 Average Speed 219 | 129 197 240 Slowest Speed 250 | 250 240 240 Overloaded Moves . | . . . Propulsion Burnouts . | . . . Robots Hopped . | . . . Potential Cave-ins . | . . . Cave-ins Triggered . | . . . Exploration Rate (%) 43 | 4 80 46 Regions Visited 2 Branch Regions 1 Pre-discovered Areas 2 | . . 2 Known Exits Taken . | . . . Unknown Exits Taken 2 | 1 1 . Scrap Searched 4 | . . 4 Spaces Dug 1 | . 1 . Terrain Destroyed 1 | . 1 . Melee . | . . . Projectile 1 | . 1 . AOE . | . . . Terrain Rammed . | . . . Walls Destroyed . | . . . Machines Disabled . | . . . Actions | -11 -10 -10 --------- Run | Yrd Mat Sub Total 1664 | 77 818 769 Wait 379 | 3 332 44 Move 1166 | 54 428 684 Hop . | . . . Pick Up 20 | 4 8 8 Fast Attach 10 | 6 2 2 Attach 1 | . 1 . Detach . | . . . Swap 14 | 1 10 3 Drop 7 | . 6 1 Fire 58 | 9 23 26 Melee . | . . . Ram . | . . . Kick 7 | . 7 . Crush 1 | . 1 . Escape Stasis . | . . . Rewire . | . . . Trap 1 | . . 1 Miscellaneous . | . . . Route ------- -11/Scrapyard -10/Materials (discovered 5 exits: [*Mat x3] / [*Min] / *Sub) -10/Subcaves History --------- Turn | Location | Event 27 | -11/Scrapyard | Discovered new exit (range 16) 116 | -11/Scrapyard | Entered Materials 308 | -10/Materials | Build established: Mutant 363 | -10/Materials | Discovered new exit (range 16) 605 | -10/Materials | Discovered new exit (range 8) 616 | -10/Materials | Derelicts attacked the area 1163 | -10/Materials | Discovered new exit (range 15) 1360 | -10/Materials | Discovered new exit (range 9) 1372 | -10/Materials | Discovered new exit (range 10) 1389 | -10/Materials | Entered Subcaves 1463 | -10/Subcaves | Disturbed a concealed Subdweller 2368 | -10/Subcaves | Visited Clippyterm 2375 | -10/Subcaves | Learned location of Extension (-4) 2375 | -10/Subcaves | Learned location of Section 7 (-2) 2527 | -10/Subcaves | Core integrity fell below 50% 2846 | -10/Subcaves | Core integrity fell below 20% 3020 | -10/Subcaves | Disturbed a concealed Subdweller 3169 | -10/Subcaves | Destroyed by G8-IL1(R) with Subdweller Machine Gun Last Messages --------------- 02824_ Acquired 10 matter. 02846_ 7B-IRX(R) destroyed. 02856_ Acquired Sub. Power Source. 03015_ Searching scrap... 03015_ Found Piercing Trap. 03015_ Found Sub. Monowheel. 03015_ Found 56 Matter. 03020_ UZ-NUH(R) angrily emerges from the Twisted Machinery. 03020_ Acquired Piercing Trap. 03021_ Dropped Piercing Trap. 03022_ Installed Piercing Trap. 03023_ UZ-NUH(R) triggered Piercing Trap. 03023_ Spikes shoot up from the floor. 03023_ UZ-NUH(R) suffers critical hit (Impale). 03023_ UZ-NUH(R) destroyed. 03035_ Searching scrap... 03035_ Found Battle Cannon. 03035_ Found 54 Matter. 03039_ Acquired Battle Cannon. 03157_ G8-IL1(R): "LEAVESUB!" Map ----- +----------------------------------------------------+ | ?????????????????????????????????????????????????? | | ????????? ???????????????????????????????????????? | | ????????? ""?????????????????????????????????????? | | ???????## ""????????????????????????????????????? | | ???????# #????????????????????????????????????? | | ???????# ##???????????????????????????????????? | | ??????## ???????????????????????????????????? | | ??????# ????????????????????????????????????? | | ??????# ?????????????????????????????????????? | | ###???? #?????????????????????????????????????? | | %"#????# #?????????????????????????????????????? | | #&#????# #?????????????????????????????????????? | | !&#???## ##????####???##????????????????????????? | | &###### #????# #??? ##? #????????????????????? | | # #?##?# ?## ## ????????????????????? | | " ## #?# #?# #????????????????????? | | #?# ### #????????????????????? | | #### #?# ?????????????????????? | | ## ##??## #?# ??????????????????????? | | ?######### #### #???????????????????????? | | ????# ### #????????????????????????? | | ???## #???##???????????????????? | | ??## #??#"#???????????????????? | | ??# ### "#???????????????????? | | ??# ### "#???????????????????? | | ??# #??## @ #???????????????????? | | ??######## R""""???????????????? | | ????## ### """"????????????????? | | ????# #?# "" #????????????????? | | ????# ### ##?###########????????????????? | | ????## ##?#####?????????????????????????????? | | ?????########????????????????????????????????????? | | ?????????????????????????????????????????????????? | | ?????????????????????????????????????????????????? | | ?????????????????????????????????????????????????? | | ?????????????????????????????????????????????????? | | ?????????????????????????????????????????????????? | | ?????????????????????????????????????????????????? | | ?????????????????????????????????????????????????? | | ?????????????????????????????????????????????????? | | ?????????????????????????????????????????????????? | | ?????????????????????????????????????????????????? | | ?????????????????????????????????????????????????? | | ?????????????????????????????????????????????????? | | ?????????????????????????????????????????????????? | | ?????????????????????????????????????????????????? | | ?????????????????????????????????????????????????? | | | | | | | +----------------------------------------------------+ Best States ------------- Heat Dissipation 25 Coolant Potential 50 Energy Generation 15 Energy Capacity 250 Matter Stores 300 Matter Capacity 300 Sight Range 16 Terrain Scan Density 10 Armor Coverage 225 Evasion (%) 55 Recoil Reduction 2 Item Schematics ----------------- None Robot Schematics ------------------ None Fabricated ------------ Nothing Repaired ---------- Nothing Studied --------- None Alien Tech Used ----------------- None Achievements -------------- None Challenges ------------ None Game ------ Seed SpectralPortableScythe Manual? 0 Play Time 00:12:33 Cumulative 437.7 hours Start 2026.08.17 @ 12:40:44 End 2026.08.17 @ 12:49:51 Sessions 1 Manual Loads 0 Difficulty Rogue Special Mode None Game No. 326 Rogue 326 Adventurer 0 Explorer 0 Win Type - Total 9 Types 4/0/3/2/0/0/0/0/0/0 Lore% 78 Gallery% 73 Achievement% 55 Wizard Run 0 Options --------- Layout 2 ASCII 0 Keyboard 1 Movement Vi Keybinds 0 Fullscreen 2 Font 32/SmallcapsGlow Map View 77x44 Zoom Use 0% Tactical HUD 1 Map Filters NONE Filters NONE Steam 1 RUN: fced1971-2d55-4d5c-a523-bd4477b6c44c